[Event "FIDE U16 Olympiad_boards_1-80"]
[Site "Eindhoven, Netherlands"]
[Date "2023.08.13"]
[Round "1.42"]
[White "Balint, Peter"]
[Black "Milovic, Ilija"]
[Result "1-0"]
[TimeControl "2700+10"]
[WhiteElo "2162"]
[BlackElo "1533"]

1. e4 {[%clk 00:45:17]} {[%emt 00:00:02]} e6 {[%clk 00:45:16]} {[%emt
00:00:05]} 2. d4 {[%clk 00:45:26]} {[%emt 00:00:01]} d5 {[%clk 00:45:22]}
{[%emt 00:00:04]} 3. Nc3 {[%clk 00:45:34]} {[%emt 00:00:01]} Nf6 {[%clk
00:45:29]} {[%emt 00:00:03]} 4. e5 {[%clk 00:45:39]} {[%emt 00:00:06]} Nfd7
{[%clk 00:45:36]} {[%emt 00:00:04]} 5. f4 {[%clk 00:45:45]} {[%emt 00:00:04]}
c5 {[%clk 00:45:39]} {[%emt 00:00:06]} 6. Nf3 {[%clk 00:45:52]} {[%emt
00:00:03]} Nc6 {[%clk 00:45:35]} {[%emt 00:00:14]} 7. Be3 {[%clk 00:45:58]}
{[%emt 00:00:04]} Qb6 {[%clk 00:45:33]} {[%emt 00:00:12]} 8. Na4 {[%clk
00:40:58]} {[%emt 00:05:10]} Qa5+ {[%clk 00:41:47]} {[%emt 00:03:56]} 9. c3
{[%clk 00:41:05]} {[%emt 00:00:04]} cxd4 {[%clk 00:40:09]} {[%emt 00:01:47]} 10.
b4 {[%clk 00:41:03]} {[%emt 00:00:12]} Qd8 {[%clk 00:33:56]} {[%emt 00:06:23]}
11. Nxd4 {[%clk 00:40:33]} {[%emt 00:00:40]} Nxd4 {[%clk 00:32:34]} {[%emt
00:01:32]} 12. Bxd4 {[%clk 00:39:26]} {[%emt 00:01:17]} Be7 {[%clk 00:30:03]}
{[%emt 00:02:40]} 13. Bd3 {[%clk 00:39:00]} {[%emt 00:00:36]} O-O {[%clk
00:27:35]} {[%emt 00:02:38]} 14. O-O {[%clk 00:37:13]} {[%emt 00:01:58]} f5
{[%clk 00:19:50]} {[%emt 00:07:55]} 15. Qf3 {[%clk 00:31:50]} {[%emt 00:05:33]}
Qe8 {[%clk 00:15:22]} {[%emt 00:04:38]} 16. Nb2 {[%clk 00:24:40]} {[%emt
00:07:19]} Nb8 {[%clk 00:11:29]} {[%emt 00:04:03]} 17. a3 {[%clk 00:21:05]}
{[%emt 00:03:45]} Bd7 {[%clk 00:11:10]} {[%emt 00:00:29]} 18. c4 {[%clk
00:17:15]} {[%emt 00:04:00]} dxc4 {[%clk 00:09:54]} {[%emt 00:01:26]} 19. Bxc4
{[%clk 00:17:23]} {[%emt 00:00:02]} Bd8 {[%clk 00:07:17]} {[%emt 00:02:47]} 20.
Qb3 {[%clk 00:16:38]} {[%emt 00:00:55]} Nc6 {[%clk 00:06:08]} {[%emt 00:01:18]}
21. Bc5 {[%clk 00:15:44]} {[%emt 00:01:04]} Bb6 {[%clk 00:05:56]} {[%emt
00:00:22]} 22. Bxb6 {[%clk 00:15:10]} {[%emt 00:00:44]} axb6 {[%clk 00:06:05]}
{[%emt 00:00:01]} 23. Rfd1 {[%clk 00:15:16]} {[%emt 00:00:03]} b5 {[%clk
00:05:37]} {[%emt 00:00:37]} 24. Bf1 {[%clk 00:11:57]} {[%emt 00:03:29]} Ne7
{[%clk 00:05:37]} {[%emt 00:00:10]} 25. g3 {[%clk 00:09:26]} {[%emt 00:02:42]}
Nd5 {[%clk 00:05:24]} {[%emt 00:00:22]} 26. Bg2 {[%clk 00:09:33]} {[%emt
00:00:03]} Bc6 {[%clk 00:05:22]} {[%emt 00:00:13]} 27. Rac1 {[%clk 00:08:59]}
{[%emt 00:00:45]} Qg6 {[%clk 00:04:45]} {[%emt 00:00:47]} 28. Rd4 {[%clk
00:08:24]} {[%emt 00:00:44]} h5 {[%clk 00:04:02]} {[%emt 00:00:53]} 29. Nd3
{[%clk 00:07:05]} {[%emt 00:01:29]} h4 {[%clk 00:03:16]} {[%emt 00:00:56]} 30.
Nc5 {[%clk 00:07:09]} {[%emt 00:00:05]} Rad8 {[%clk 00:02:36]} {[%emt
00:00:50]} 31. Rcd1 {[%clk 00:06:41]} {[%emt 00:00:39]} hxg3 {[%clk 00:01:48]}
{[%emt 00:00:58]} 32. hxg3 {[%clk 00:05:43]} {[%emt 00:01:08]} Nxf4 {[%clk
00:00:19]} {[%emt 00:01:39]} 33. Rxd8 {[%clk 00:05:00]} {[%emt 00:00:53]} Nxg2
{[%clk 00:00:12]} {[%emt 00:00:16]} 34. Nxe6 {[%clk 00:04:49]} {[%emt
00:00:20]} 1-0

[Event "FIDE U16 Olympiad_boards_1-80"]
[Site "Eindhoven, Netherlands"]
[Date "2023.08.13"]
[Round "1.43"]
[White "Radulovic, Vasilije"]
[Black "Ernst, Robert"]
[Result "0-1"]
[TimeControl "2700+10"]
[WhiteElo "1453"]
[BlackElo "2088"]

1. d4 {[%clk 00:45:18]} d5 {[%clk 00:45:19]} {[%emt 00:00:02]} 2. c4 {[%clk
00:45:26]} {[%emt 00:00:02]} c6 {[%clk 00:45:28]} {[%emt 00:00:02]} 3. Nc3
{[%clk 00:45:29]} {[%emt 00:00:07]} Nf6 {[%clk 00:45:36]} {[%emt 00:00:02]} 4.
cxd5 {[%clk 00:44:20]} {[%emt 00:01:18]} cxd5 {[%clk 00:45:44]} {[%emt
00:00:02]} 5. Bg5 {[%clk 00:44:20]} {[%emt 00:00:10]} Nc6 {[%clk 00:43:23]}
{[%emt 00:02:31]} 6. Bxf6 {[%clk 00:38:30]} {[%emt 00:06:00]} gxf6 {[%clk
00:43:26]} {[%emt 00:00:07]} 7. e3 {[%clk 00:38:06]} {[%emt 00:00:35]} e6
{[%clk 00:41:50]} {[%emt 00:01:45]} 8. Bb5 {[%clk 00:36:27]} {[%emt 00:01:49]}
Bd6 {[%clk 00:41:38]} {[%emt 00:00:22]} 9. Nf3 {[%clk 00:34:09]} {[%emt
00:02:29]} Bd7 {[%clk 00:38:36]} {[%emt 00:03:11]} 10. a3 {[%clk 00:28:08]}
{[%emt 00:06:11]} Na5 {[%clk 00:34:52]} {[%emt 00:03:55]} 11. Bxd7+ {[%clk
00:26:15]} {[%emt 00:02:02]} Qxd7 {[%clk 00:34:59]} {[%emt 00:00:03]} 12. e4
{[%clk 00:22:15]} {[%emt 00:04:11]} dxe4 {[%clk 00:34:56]} {[%emt 00:00:13]} 13.
Nxe4 {[%clk 00:21:55]} {[%emt 00:00:30]} Be7 {[%clk 00:33:57]} {[%emt
00:01:08]} 14. b4 {[%clk 00:16:41]} {[%emt 00:05:24]} Nc4 {[%clk 00:31:22]}
{[%emt 00:02:45]} 15. Qb3 {[%clk 00:13:39]} {[%emt 00:03:12]} Rc8 {[%clk
00:24:09]} {[%emt 00:07:23]} 16. Nc5 {[%clk 00:10:20]} {[%emt 00:03:29]} Qd5
{[%clk 00:24:13]} {[%emt 00:00:06]} 17. Rc1 {[%clk 00:09:06]} {[%emt 00:01:24]}
Nb6 {[%clk 00:24:11]} {[%emt 00:00:12]} 18. Qxd5 {[%clk 00:08:39]} {[%emt
00:00:37]} Nxd5 {[%clk 00:24:17]} {[%emt 00:00:04]} 19. O-O {[%clk 00:08:36]}
{[%emt 00:00:12]} b6 {[%clk 00:23:45]} {[%emt 00:00:43]} 20. Ne4 {[%clk
00:06:32]} {[%emt 00:02:14]} Kd7 {[%clk 00:23:41]} {[%emt 00:00:15]} 21. g3
{[%clk 00:05:30]} {[%emt 00:01:12]} Rxc1 {[%clk 00:20:57]} {[%emt 00:02:54]} 22.
Rxc1 {[%clk 00:05:36]} {[%emt 00:00:04]} Rc8 {[%clk 00:20:57]} {[%emt
00:00:11]} 23. Rxc8 {[%clk 00:04:15]} {[%emt 00:01:30]} Kxc8 {[%clk 00:21:06]}
{[%emt 00:00:01]} 24. Nfd2 {[%clk 00:03:59]} {[%emt 00:00:26]} f5 {[%clk
00:20:03]} {[%emt 00:01:13]} 25. f3 {[%clk 00:01:57]} {[%emt 00:02:12]} fxe4
{[%clk 00:20:08]} {[%emt 00:00:05]} 26. fxe4 {[%clk 00:02:04]} {[%emt
00:00:03]} Nc3 {[%clk 00:20:12]} {[%emt 00:00:06]} 27. e5 {[%clk 00:00:21]}
{[%emt 00:01:54]} Ne2+ {[%clk 00:20:16]} {[%emt 00:00:06]} 28. Kf2 {[%clk
00:00:20]} {[%emt 00:00:11]} Nxd4 {[%clk 00:20:25]} {[%emt 00:00:01]} 29. Nb1
{[%clk 00:00:13]} {[%emt 00:00:17]} Nc6 {[%clk 00:20:26]} {[%emt 00:00:08]} 30.
Ke3 {[%clk 00:00:13]} {[%emt 00:00:10]} Nxe5 {[%clk 00:20:27]} {[%emt
00:00:09]} 31. Ke4 {[%clk 00:00:12]} {[%emt 00:00:12]} Ng4 {[%clk 00:20:15]}
{[%emt 00:00:22]} 32. Kd4 {[%emt 00:00:14]} 0-1

[Event "FIDE U16 Olympiad_boards_1-80"]
[Site "Eindhoven, Netherlands"]
[Date "2023.08.13"]
[Round "1.44"]
[White "Deak-Sala, Emilia"]
[Black "Mosurovic, Milena"]
[Result "1-0"]
[TimeControl "2700+10"]
[WhiteElo "1910"]
[BlackElo "1646"]

1. e4 {[%clk 00:45:17]} {[%emt 00:00:03]} e5 {[%clk 00:45:19]} {[%emt
00:00:02]} 2. Nf3 {[%clk 00:45:26]} {[%emt 00:00:02]} Nc6 {[%clk 00:45:27]}
{[%emt 00:00:01]} 3. Bc4 {[%clk 00:45:34]} {[%emt 00:00:02]} Nf6 {[%clk
00:45:35]} {[%emt 00:00:02]} 4. d3 {[%clk 00:45:41]} {[%emt 00:00:03]} Bc5
{[%clk 00:45:38]} {[%emt 00:00:07]} 5. c3 {[%clk 00:45:44]} {[%emt 00:00:07]}
a6 {[%clk 00:45:35]} {[%emt 00:00:13]} 6. h3 {[%clk 00:44:43]} {[%emt
00:01:11]} d6 {[%clk 00:44:50]} {[%emt 00:00:55]} 7. Bb3 {[%clk 00:44:51]}
{[%emt 00:00:03]} Ba7 {[%clk 00:42:54]} {[%emt 00:02:06]} 8. Nbd2 {[%clk
00:44:57]} {[%emt 00:00:03]} O-O {[%clk 00:42:00]} {[%emt 00:01:03]} 9. Nf1
{[%clk 00:44:54]} {[%emt 00:00:13]} d5 {[%clk 00:36:07]} {[%emt 00:06:03]} 10.
Qe2 {[%clk 00:45:00]} {[%emt 00:00:05]} Re8 {[%clk 00:34:30]} {[%emt 00:01:47]}
11. Ng3 {[%clk 00:45:08]} {[%emt 00:00:03]} Na5 {[%clk 00:31:40]} {[%emt
00:02:59]} 12. Bc2 {[%clk 00:43:32]} {[%emt 00:01:45]} c5 {[%clk 00:31:22]}
{[%emt 00:00:28]} 13. O-O {[%clk 00:41:23]} {[%emt 00:02:20]} h6 {[%clk
00:28:49]} {[%emt 00:02:43]} 14. Re1 {[%clk 00:38:51]} {[%emt 00:02:42]} Qb6
{[%clk 00:25:36]} {[%emt 00:03:23]} 15. exd5 {[%clk 00:35:52]} {[%emt
00:03:09]} Nxd5 {[%clk 00:25:33]} {[%emt 00:00:13]} 16. d4 {[%clk 00:35:10]}
{[%emt 00:00:52]} Bd7 {[%clk 00:20:37]} {[%emt 00:05:05]} 17. dxe5 {[%clk
00:35:04]} {[%emt 00:00:17]} Bb5 {[%clk 00:19:25]} {[%emt 00:01:22]} 18. Qe4
{[%clk 00:33:32]} {[%emt 00:01:42]} Nf6 {[%clk 00:18:43]} {[%emt 00:00:52]} 19.
Qh4 {[%clk 00:33:32]} {[%emt 00:00:10]} Nd7 {[%clk 00:16:46]} {[%emt 00:02:06]}
20. Nf5 {[%clk 00:30:34]} {[%emt 00:03:09]} Re6 {[%clk 00:11:30]} {[%emt
00:05:27]} 21. Qg3 {[%clk 00:28:57]} {[%emt 00:01:46]} Rg6 {[%clk 00:11:09]}
{[%emt 00:00:31]} 22. Ne7+ {[%clk 00:29:02]} {[%emt 00:00:05]} 1-0

[Event "FIDE U16 Olympiad_boards_1-80"]
[Site "Eindhoven, Netherlands"]
[Date "2023.08.13"]
[Round "1.45"]
[White "Dubnevych, Maksym"]
[Black "Hernandez Mendez, Iker"]
[Result "1-0"]
[TimeControl "2700+10"]
[WhiteElo "2196"]
[BlackElo "1686"]

1. d4 {[%clk 00:45:15]} {[%emt 00:00:04]} Nf6 {[%clk 00:45:06]} {[%emt
00:00:14]} 2. c4 {[%clk 00:45:20]} {[%emt 00:00:05]} e6 {[%clk 00:45:07]}
{[%emt 00:00:09]} 3. Nf3 {[%clk 00:45:25]} {[%emt 00:00:04]} c6 {[%clk
00:44:20]} {[%emt 00:00:58]} 4. Bf4 {[%clk 00:43:52]} {[%emt 00:01:43]} d5
{[%clk 00:39:12]} {[%emt 00:05:18]} 5. e3 {[%clk 00:42:44]} {[%emt 00:01:18]}
Nbd7 {[%clk 00:38:26]} {[%emt 00:00:55]} 6. cxd5 {[%clk 00:40:54]} {[%emt
00:02:01]} exd5 {[%clk 00:37:53]} {[%emt 00:00:43]} 7. h3 {[%clk 00:39:19]}
{[%emt 00:01:44]} Be7 {[%clk 00:35:57]} {[%emt 00:02:06]} 8. Bd3 {[%clk
00:39:23]} {[%emt 00:00:07]} O-O {[%clk 00:36:03]} {[%emt 00:00:04]} 9. O-O
{[%clk 00:39:28]} {[%emt 00:00:05]} Re8 {[%clk 00:35:41]} {[%emt 00:00:32]} 10.
Nc3 {[%clk 00:38:50]} {[%emt 00:00:48]} Nf8 {[%clk 00:34:16]} {[%emt 00:01:35]}
11. Ne5 {[%clk 00:38:44]} {[%emt 00:00:15]} Ng6 {[%clk 00:33:58]} {[%emt
00:00:28]} 12. Bg3 {[%clk 00:38:14]} {[%emt 00:00:41]} Bd6 {[%clk 00:31:27]}
{[%emt 00:02:41]} 13. f4 {[%clk 00:38:21]} {[%emt 00:00:03]} c5 {[%clk
00:29:00]} {[%emt 00:02:37]} 14. Qf3 {[%clk 00:37:54]} {[%emt 00:00:37]} cxd4
{[%clk 00:27:55]} {[%emt 00:01:16]} 15. exd4 {[%clk 00:38:00]} {[%emt
00:00:04]} Qb6 {[%clk 00:27:19]} {[%emt 00:00:45]} 16. Qf2 {[%clk 00:37:14]}
{[%emt 00:00:55]} Be6 {[%clk 00:24:13]} {[%emt 00:03:17]} 17. Kh1 {[%clk
00:35:13]} {[%emt 00:02:11]} Ne7 {[%clk 00:22:21]} {[%emt 00:02:02]} 18. Bh4
{[%clk 00:31:11]} {[%emt 00:04:12]} Nd7 {[%clk 00:18:00]} {[%emt 00:04:31]} 19.
Bxe7 {[%clk 00:26:12]} {[%emt 00:05:09]} Rxe7 {[%clk 00:16:31]} {[%emt
00:01:39]} 20. f5 {[%clk 00:25:42]} {[%emt 00:00:41]} Bxe5 {[%clk 00:15:20]}
{[%emt 00:01:20]} 21. fxe6 {[%clk 00:25:12]} {[%emt 00:00:40]} Bxd4 {[%clk
00:15:16]} {[%emt 00:00:14]} 22. Qh4 {[%clk 00:25:12]} {[%emt 00:00:11]} Rxe6
{[%clk 00:13:38]} {[%emt 00:01:47]} 23. Nxd5 {[%clk 00:25:11]} {[%emt
00:00:12]} Rh6 {[%clk 00:12:26]} {[%emt 00:01:21]} 24. Nxb6 {[%clk 00:25:17]}
{[%emt 00:00:04]} Rxh4 {[%clk 00:12:34]} {[%emt 00:00:01]} 25. Nxa8 {[%clk
00:25:26]} {[%emt 00:00:02]} Bxb2 {[%clk 00:11:56]} {[%emt 00:00:48]} 26. Rab1
{[%clk 00:24:05]} {[%emt 00:01:30]} Be5 {[%clk 00:11:47]} {[%emt 00:00:20]} 27.
Rxb7 {[%clk 00:22:54]} {[%emt 00:01:22]} Nc5 {[%clk 00:11:31]} {[%emt
00:00:25]} 28. Re7 {[%clk 00:22:23]} {[%emt 00:00:41]} Bd6 {[%clk 00:10:50]}
{[%emt 00:00:51]} 29. Rexf7 {[%clk 00:20:50]} {[%emt 00:01:43]} Nxd3 {[%clk
00:10:41]} {[%emt 00:00:18]} 30. Rd7 {[%clk 00:20:58]} {[%emt 00:00:02]} Bf8
{[%clk 00:09:25]} {[%emt 00:01:26]} 31. Rxd3 {[%clk 00:21:05]} {[%emt
00:00:04]} Be7 {[%clk 00:09:09]} {[%emt 00:00:26]} 32. Nc7 {[%clk 00:20:56]}
{[%emt 00:00:20]} Ra4 {[%clk 00:08:40]} {[%emt 00:00:38]} 33. Nd5 {[%clk
00:20:58]} {[%emt 00:00:08]} Bf8 {[%clk 00:08:13]} {[%emt 00:00:37]} 34. Nc3
{[%clk 00:21:02]} {[%emt 00:00:06]} 1-0

[Event "FIDE U16 Olympiad_boards_1-80"]
[Site "Eindhoven, Netherlands"]
[Date "2023.08.13"]
[Round "1.46"]
[White "Thogata, Randheer"]
[Black "Hnatyshyn, Anastasiia"]
[Result "1/2-1/2"]
[TimeControl "2700+10"]
[WhiteElo "1636"]
[BlackElo "2139"]

1. e4 {[%clk 00:45:18]} {[%emt 00:00:01]} c5 {[%clk 00:45:18]} {[%emt
00:00:02]} 2. Nf3 {[%clk 00:45:25]} {[%emt 00:00:04]} Nc6 {[%clk 00:45:26]}
{[%emt 00:00:01]} 3. Bb5 {[%clk 00:45:26]} {[%emt 00:00:09]} g6 {[%clk
00:45:31]} {[%emt 00:00:06]} 4. O-O {[%clk 00:45:18]} {[%emt 00:00:18]} Bg7
{[%clk 00:45:22]} {[%emt 00:00:19]} 5. Re1 {[%clk 00:45:16]} {[%emt 00:00:12]}
Nf6 {[%clk 00:45:02]} {[%emt 00:00:30]} 6. e5 {[%clk 00:45:24]} {[%emt
00:00:02]} Nd5 {[%clk 00:44:59]} {[%emt 00:00:13]} 7. Nc3 {[%clk 00:45:21]}
{[%emt 00:00:13]} Nc7 {[%clk 00:44:05]} {[%emt 00:01:04]} 8. Bxc6 {[%clk
00:45:29]} {[%emt 00:00:02]} dxc6 {[%clk 00:43:49]} {[%emt 00:00:25]} 9. Ne4
{[%clk 00:44:38]} {[%emt 00:01:01]} Ne6 {[%clk 00:41:29]} {[%emt 00:02:30]} 10.
d3 {[%clk 00:43:30]} {[%emt 00:01:18]} O-O {[%clk 00:41:09]} {[%emt 00:00:31]}
11. Be3 {[%clk 00:42:06]} {[%emt 00:01:34]} b6 {[%clk 00:38:54]} {[%emt
00:02:24]} 12. Qd2 {[%clk 00:41:32]} {[%emt 00:00:45]} Qc7 {[%clk 00:33:07]}
{[%emt 00:05:57]} 13. Bh6 {[%clk 00:40:07]} {[%emt 00:01:35]} Rd8 {[%clk
00:30:35]} {[%emt 00:02:41]} 14. Bxg7 {[%clk 00:38:45]} {[%emt 00:01:33]} Kxg7
{[%clk 00:30:36]} {[%emt 00:00:09]} 15. Qe3 {[%clk 00:34:43]} {[%emt 00:04:12]}
h6 {[%clk 00:25:37]} {[%emt 00:05:09]} 16. h4 {[%clk 00:31:57]} {[%emt
00:02:56]} Nd4 {[%clk 00:22:24]} {[%emt 00:03:22]} 17. Nxd4 {[%clk 00:30:41]}
{[%emt 00:01:26]} cxd4 {[%clk 00:22:13]} {[%emt 00:00:21]} 18. Qg3 {[%clk
00:28:58]} {[%emt 00:01:54]} Qd7 {[%clk 00:19:50]} {[%emt 00:02:33]} 19. f3
{[%clk 00:22:07]} {[%emt 00:07:01]} Qf5 {[%clk 00:14:11]} {[%emt 00:05:48]} 20.
Re2 {[%clk 00:17:49]} {[%emt 00:04:29]} a5 {[%clk 00:09:05]} {[%emt 00:05:15]}
21. Rae1 {[%clk 00:17:34]} {[%emt 00:00:25]} a4 {[%clk 00:07:55]} {[%emt
00:01:20]} 22. e6 {[%clk 00:06:31]} {[%emt 00:11:14]} Bxe6 {[%clk 00:05:48]}
{[%emt 00:02:16]} 23. Nf2 {[%clk 00:06:25]} {[%emt 00:00:16]} Qf6 {[%clk
00:02:50]} {[%emt 00:03:09]} 24. Ne4 {[%clk 00:06:00]} {[%emt 00:00:35]} Qf5
{[%clk 00:02:56]} {[%emt 00:00:03]} 25. Nf2 {[%clk 00:05:03]} {[%emt 00:01:07]}
Qf6 {[%clk 00:00:57]} {[%emt 00:02:10]} 26. Ne4 {[%clk 00:00:53]} {[%emt
00:04:20]} Qf5 {[%clk 00:01:05]} {[%emt 00:00:02]} 27. Nf2 {[%clk 00:00:31]}
{[%emt 00:00:32]} Qf6 {[%clk 00:00:20]} {[%emt 00:00:54]} 28. Ne4 {[%clk
00:00:28]} {[%emt 00:00:14]} Qf5 {[%clk 00:00:28]} {[%emt 00:00:02]} 1/2-1/2

[Event "FIDE U16 Olympiad_boards_1-80"]
[Site "Eindhoven, Netherlands"]
[Date "2023.08.13"]
[Round "1.47"]
[White "Fishchuk, Vladyslav"]
[Black "Fan, Chloe"]
[Result "1-0"]
[TimeControl "2700+10"]
[WhiteElo "2053"]
[BlackElo "1787"]

1. Nc3 {[%clk 00:45:16]} {[%emt 00:00:04]} Nf6 {[%clk 00:44:59]} {[%emt
00:00:21]} 2. d4 {[%clk 00:44:44]} {[%emt 00:00:42]} d5 {[%clk 00:45:07]}
{[%emt 00:00:03]} 3. Bf4 {[%clk 00:44:52]} {[%emt 00:00:01]} c5 {[%clk
00:40:59]} {[%emt 00:04:18]} 4. e4 {[%clk 00:44:40]} {[%emt 00:00:22]} e6
{[%clk 00:34:20]} {[%emt 00:06:50]} 5. Nb5 {[%clk 00:38:18]} {[%emt 00:06:32]}
Na6 {[%clk 00:33:51]} {[%emt 00:00:39]} 6. e5 {[%clk 00:37:58]} {[%emt
00:00:30]} Nd7 {[%clk 00:31:13]} {[%emt 00:02:48]} 7. Nf3 {[%clk 00:35:30]}
{[%emt 00:02:37]} Be7 {[%clk 00:26:41]} {[%emt 00:04:41]} 8. c3 {[%clk
00:33:57]} {[%emt 00:01:45]} O-O {[%clk 00:25:45]} {[%emt 00:01:06]} 9. Bd3
{[%clk 00:32:29]} {[%emt 00:01:36]} cxd4 {[%clk 00:24:12]} {[%emt 00:01:45]} 10.
h4 {[%clk 00:28:42]} {[%emt 00:03:57]} f5 {[%clk 00:19:51]} {[%emt 00:04:30]}
11. Nbxd4 {[%clk 00:26:43]} {[%emt 00:02:10]} Nac5 {[%clk 00:16:12]} {[%emt
00:03:49]} 12. Bc2 {[%clk 00:23:47]} {[%emt 00:03:05]} Nb8 {[%clk 00:12:05]}
{[%emt 00:04:18]} 13. Qe2 {[%clk 00:17:47]} {[%emt 00:06:09]} Nc6 {[%clk
00:10:50]} {[%emt 00:01:26]} 14. O-O-O {[%clk 00:16:42]} {[%emt 00:01:14]} a5
{[%clk 00:06:07]} {[%emt 00:04:53]} 15. c4 {[%clk 00:13:36]} {[%emt 00:03:16]}
Nb4 {[%clk 00:05:05]} {[%emt 00:01:13]} 16. Bb1 {[%clk 00:12:47]} {[%emt
00:00:58]} Qc7 {[%clk 00:03:20]} {[%emt 00:01:55]} 17. a3 {[%clk 00:10:13]}
{[%emt 00:02:45]} Nba6 {[%clk 00:02:41]} {[%emt 00:00:49]} 18. Ba2 {[%clk
00:09:24]} {[%emt 00:00:58]} Bd7 {[%clk 00:01:46]} {[%emt 00:01:06]} 19. Kb1
{[%clk 00:09:15]} {[%emt 00:00:19]} Ba4 {[%clk 00:00:36]} {[%emt 00:01:20]} 20.
Rc1 {[%clk 00:07:40]} {[%emt 00:01:45]} dxc4 {[%clk 00:00:26]} {[%emt
00:00:20]} 21. Qxc4 {[%clk 00:04:25]} {[%emt 00:03:24]} Qb6 {[%clk 00:00:14]}
{[%emt 00:00:22]} 22. Nxe6 {[%clk 00:03:26]} {[%emt 00:01:09]} Bb5 {[%clk
00:00:14]} {[%emt 00:00:11]} 23. Qxb5 {[%clk 00:03:02]} {[%emt 00:00:33]} Qxb5
{[%clk 00:00:17]} {[%emt 00:00:08]} 24. Ned4+ {[%clk 00:03:09]} {[%emt
00:00:03]} Nb3 {[%clk 00:00:15]} {[%emt 00:00:11]} 25. Nxb5 {[%clk 00:03:07]}
{[%emt 00:00:12]} Nac5 {[%clk 00:00:13]} {[%emt 00:00:13]} 26. Rxc5 {[%clk
00:02:41]} {[%emt 00:00:36]} Bxc5 {[%clk 00:00:22]} 27. Bxb3+ {[%clk 00:02:49]}
{[%emt 00:00:01]} Kh8 {[%clk 00:00:26]} {[%emt 00:00:06]} 28. Nc7 {[%clk
00:02:17]} {[%emt 00:00:42]} Rac8 {[%clk 00:00:24]} {[%emt 00:00:12]} 29. Ne6
{[%clk 00:02:25]} {[%emt 00:00:03]} Rfe8 {[%clk 00:00:25]} {[%emt 00:00:09]} 30.
Nfg5 {[%clk 00:02:07]} {[%emt 00:00:28]} h6 {[%clk 00:00:18]} {[%emt 00:00:17]}
31. Nf7+ {[%clk 00:02:02]} {[%emt 00:00:14]} Kh7 {[%clk 00:00:21]} {[%emt
00:00:07]} 32. Nd6 {[%clk 00:01:49]} {[%emt 00:00:24]} Bxd6 {[%clk 00:00:25]}
{[%emt 00:00:06]} 33. exd6 {[%clk 00:01:58]} {[%emt 00:00:01]} 1-0